fUST/lending_fUST_20240801
["ID","MTS","AMOUNT","RATE_DAILY","PERIOD"]
[333776150,1722480646762,-982.43,0.00013972,2]
[333776151,1722480646771,-500.0,0.00013972,2]
[333776152,1722480646780,-500.0,0.00013972,2]
[333776153,1722480646790,-500.0,0.00013972,2]
[333776154,1722480646799,-500.0,0.00013972,2]
[333776155,1722480646810,-500.0,0.00013972,2]
[333776156,1722480646819,-1007.88,0.00013972,2]
[333776157,1722480646828,-500.0,0.00013972,2]
[333776158,1722480646838,-500.0,0.00013972,2]
[333776159,1722480646848,-609.66,0.00013972,2]
[333776160,1722480646857,-1201.11,0.00013972,2]
[333776161,1722480646867,-726.59,0.00013972,2]
[333776162,1722480646876,-582.3,0.00013972,2]
[333776163,1722480646886,-500.0,0.00013972,2]
[333776164,1722480646896,-500.0,0.00013972,2]
[333776165,1722480646907,-1677.14,0.00013972,2]
[333776167,1722480646917,-500.0,0.00013972,2]
[333776169,1722480646928,-500.0,0.00013972,2]
[333776171,1722480646937,-977.27,0.00013972,2]
[333776173,1722480646946,-2094.43,0.00013972,2]
[333776175,1722480646955,-536.9,0.00013972,2]
[333776177,1722480646964,-737.92,0.00013972,2]
[333776179,1722480646974,-500.0,0.00013972,2]
[333776181,1722480646984,-1233.15,0.00013972,2]
[333776183,1722480646996,-1067.41,0.00013972,2]
[333776185,1722480647006,-885.3,0.00013972,2]
[333776187,1722480647015,-500.0,0.00013972,2]
[333776189,1722480647025,-586.02,0.00013972,2]
[333776191,1722480647034,-500.0,0.00013972,2]
[333776193,1722480647044,-1103.95,0.00013972,2]
[333776194,1722480647053,-650.98,0.00013972,2]
[333776195,1722480647063,-1677.9,0.00013972,2]
[333776196,1722480647073,-500.0,0.00013972,2]
[333776197,1722480647083,-500.0,0.00013972,2]
[333776198,1722480647093,-288.9961,0.00013972,2]
[333776199,1722480647104,-644.04,0.00013972,2]
[333776200,1722480647114,-288.9961,0.00013972,2]
[333776201,1722480647124,-500.0,0.00013972,2]
[333776202,1722480647134,-500.0,0.00013972,2]
[333776203,1722480647145,-500.0,0.00013972,2]
[333776204,1722480647155,-288.9961,0.00013972,2]
[333776205,1722480647165,-288.9961,0.00013972,2]
[333776206,1722480647175,-517.32,0.00013972,2]
[333776207,1722480647185,-862.6,0.00013972,2]
[333776208,1722480647195,-500.0,0.00013972,2]
[333776209,1722480647205,-825.41,0.00013972,2]
[333776210,1722480647214,-5877.26,0.00013972,2]
[333776211,1722480647224,-869.81,0.00013972,2]
[333776212,1722480647234,-602.08,0.00013972,2]
[333776213,1722480647249,-500.0,0.00013972,2]
[333776214,1722480647258,-500.0,0.00013972,2]
[333776215,1722480647267,-500.0,0.00013972,2]
[333776216,1722480647276,-5862.13,0.00013972,2]
[333776217,1722480647285,-212.36,0.00013997,2]
[333776218,1722480647295,-281.276,0.00013997,2]
[333776219,1722480647304,-215.968,0.00013997,2]
[333776220,1722480647314,-176.659608,0.00014001,2]
[333776221,1722480647324,-176.659608,0.00014001,2]
[333776222,1722480647334,-151.0,0.00014001,2]
[333776223,1722480647344,-151.0,0.00014001,2]
[333776224,1722480647354,-341.046348,0.00014008,2]
[333776225,1722480647364,-341.046348,0.00014008,2]
[333776226,1722480647374,-503.31,0.00014008,2]
[333776227,1722480647384,-151.0,0.00014136,2]
[333776228,1722480647393,-174.815118,0.00014136,2]
[333776229,1722480647403,-174.815118,0.00014136,2]
[333776230,1722480647412,-577.314512,0.00014136,2]
[333776231,1722480647422,-577.314512,0.00014136,2]
[333776232,1722480647432,-483.427735,0.00014136,2]
[333776233,1722480647442,-483.427735,0.00014136,2]
[333776234,1722480647452,-200.0,0.00014169,2]
[333776235,1722480647461,-151.0,0.0001419,2]
[333776236,1722480647471,-151.0,0.0001419,2]
[333776237,1722480647481,-151.0,0.0001419,2]
[333776238,1722480647493,-392.655776,0.0001419,2]
[333776239,1722480647507,-392.655776,0.0001419,2]
[333776240,1722480647516,-151.0,0.00014214,2]
[333776241,1722480647525,-194.045772,0.00014214,2]
[333776242,1722480647535,-194.045772,0.00014214,2]
[333776243,1722480647546,-242.708044,0.00014214,2]
[333776244,1722480647560,-503.31,0.00014214,2]
[333776245,1722480647575,-27795.7490312,0.00014215,2]
[333776246,1722480647590,-152.693798,0.00014215,2]
[333776247,1722480647603,-151.0,0.00014215,2]
[333776248,1722480647615,-151.0,0.00014215,2]
[333776249,1722480647629,-288.2,0.00014225,2]
[333776250,1722480647642,-151.0,0.00014225,2]
[333776251,1722480647655,-174.815118,0.00014225,2]
[333776252,1722480647669,-174.815118,0.00014225,2]
[333776253,1722480647682,-577.314512,0.00014225,2]
[333776254,1722480647695,-341.046348,0.00014225,2]
[333776255,1722480647710,-577.314512,0.00014225,2]
[333776256,1722480647722,-483.427735,0.00014225,2]
[333776257,1722480647735,-341.046348,0.00014225,2]
[333776258,1722480647751,-483.427735,0.00014225,2]
[333776259,1722480647765,-176.659608,0.00014225,2]
[333776260,1722480647779,-176.659608,0.00014225,2]
[333776261,1722480647792,-151.0,0.00014225,2]
[333776262,1722480647803,-206.992091,0.00014225,2]
[333776263,1722480647815,-151.0,0.00014225,2]
[333776264,1722480647826,-392.655776,0.00014225,2]
[333776265,1722480647839,-392.655776,0.00014225,2]
[333776266,1722480647852,-392.655776,0.00014225,2]
[333776267,1722480647865,-392.655776,0.00014225,2]
[333776268,1722480647877,-223.793758,0.00014225,2]
[333776269,1722480647892,-223.793758,0.00014225,2]
[333776270,1722480647907,-433.767581,0.00014225,2]
[333776271,1722480647920,-433.767581,0.00014225,2]
[333776273,1722480647930,-223.793758,0.00014225,2]
[333776275,1722480647940,-223.793758,0.00014225,2]
[333776276,1722480647951,-433.767581,0.00014225,2]
[333776277,1722480647962,-433.767581,0.00014225,2]
[333776280,1722480647976,-1454.64,0.00014225,2]
[333776282,1722480647989,-288.9961,0.00014225,2]
[333776284,1722480648000,-288.9961,0.00014225,2]
[333776286,1722480648012,-288.9961,0.00014225,2]
[333776288,1722480648025,-288.9961,0.00014225,2]
[333776289,1722480648037,-503.3883103,0.00014234,2]
[333776290,1722480648049,-500.0,0.00014234,2]
[333776291,1722480648059,-1528.36,0.00014234,2]
[333776292,1722480648070,-503.31,0.00014235,2]
[333776293,1722480648081,-503.31,0.00014235,2]
[333776294,1722480648093,-1454.64,0.00014235,2]
[333776295,1722480648105,-1454.64,0.00014235,2]
[333776296,1722480648116,-1454.64,0.00014235,2]
[333776297,1722480648128,-1454.64,0.00014235,2]
[333776298,1722480648140,-840.15,0.00014235,2]
[333776299,1722480648152,-4664.39,0.00014235,2]
[333776300,1722480648164,-151.0,0.00014236,2]
[333776301,1722480648176,-151.0,0.00014236,2]
[333776302,1722480648187,-434.724192,0.00014236,2]
[333776303,1722480648200,-434.724192,0.00014236,2]
[333776304,1722480648211,-151.0,0.00014236,2]
[333776305,1722480648223,-151.0,0.00014236,2]
[333776306,1722480648235,-151.0,0.00014236,2]
[333776307,1722480648250,-194.045772,0.00014236,2]
[333776308,1722480648262,-194.045772,0.00014236,2]
[333776309,1722480648273,-194.045772,0.00014236,2]
[333776310,1722480648285,-194.045772,0.00014236,2]
[333776311,1722480648298,-194.045772,0.00014236,2]
[333776313,1722480648309,-194.045772,0.00014236,2]
[333776315,1722480648320,-151.0,0.00014236,2]
[333776317,1722480648331,-151.0,0.00014236,2]
[333776319,1722480648342,-151.0,0.00014236,2]
[333776321,1722480648353,-151.0,0.00014236,2]
[333776323,1722480648364,-151.0,0.00014236,2]
[333776324,1722480648375,-157.24136,0.00014236,2]
[333776325,1722480648386,-151.0,0.00014236,2]
[333776326,1722480648398,-174.815118,0.00014236,2]
[333776327,1722480648410,-174.815118,0.00014236,2]
[333776328,1722480648423,-174.815118,0.00014236,2]
[333776329,1722480648435,-174.815118,0.00014236,2]
[333776330,1722480648447,-577.314512,0.00014236,2]
[333776331,1722480648460,-577.314512,0.00014236,2]
[333776332,1722480648471,-341.046348,0.00014236,2]
[333776333,1722480648483,-577.314512,0.00014236,2]
[333776334,1722480648499,-577.314512,0.00014236,2]
[333776335,1722480648512,-483.427735,0.00014236,2]
[333776336,1722480648524,-483.427735,0.00014236,2]
[333776337,1722480648535,-341.046348,0.00014236,2]
[333776338,1722480648547,-483.427735,0.00014236,2]
[333776339,1722480648559,-483.427735,0.00014236,2]
[333776340,1722480648571,-176.659608,0.00014236,2]
[333776341,1722480648582,-176.659608,0.00014236,2]
[333776342,1722480648595,-151.0,0.00014236,2]
[333776343,1722480648606,-392.655776,0.00014236,2]
[333776344,1722480648619,-392.655776,0.00014236,2]
[333776345,1722480648630,-223.793758,0.00014236,2]
[333776346,1722480648642,-119.26772766,0.00014236,2]
[333776351,1722480835760,942.37062895,9.999e-05,2]
[333776352,1722480869345,182.87880993,9.999e-05,2]
[333776353,1722480879175,166.03445243,9.999e-05,2]
[333776354,1722480894331,849.18218214,9.999e-05,2]
[333776355,1722480945389,260.33157747,9.999e-05,2]
[333776356,1722480956073,519.46703512,9.999e-05,2]
[333776357,1722480957760,393.92171688,9.999e-05,2]
[333776358,1722480957790,548.44891207,9.999e-05,2]
[333776359,1722480972594,154.86955794,9.999e-05,2]
[333776360,1722480994461,309.53871192,0.0001,2]
[333776361,1722481040069,519.51039445,9.999e-05,2]
[333776362,1722481050508,154.95929757,9.999e-05,2]
[333776363,1722481059760,831.6417499,9.999e-05,2]
[333776364,1722481083765,182.61111993,9.999e-05,2]
[333776365,1722481095332,853.08684697,9.999e-05,2]
[333776366,1722481135830,156.92110382,9.999e-05,2]
[333776367,1722481166832,156.3342055,9.999e-05,2]
[333776368,1722481196134,154.82195475,9.999e-05,2]
[333776369,1722481238379,188.18564016,9.999e-05,2]
[333776370,1722481266092,319.6458186,9.999e-05,2]
[333776371,1722481298410,155.08433055,9.999e-05,2]
[333776372,1722481301192,209.95462675,9.999e-05,2]
[333776373,1722481301680,202.42443047,9.999e-05,2]
[333776375,1722481366090,320.27909908,9.999e-05,2]
[333776376,1722481389370,188.58249894,9.999e-05,2]
[333776377,1722481507487,183.06078838,9.999e-05,2]
[333776382,1722481601505,233.19452997,9.999e-05,2]
[333776567,1722481840645,-582.41753839,0.0001212,2]
[333776569,1722481840655,-402.08578826,0.0001212,2]
[333776571,1722481840665,-288.40744436,0.0001212,2]
[333776573,1722481840675,-275.99688424,0.0001212,2]
[333776575,1722481840685,-300.0,0.00012478,2]
[333776577,1722481840695,-6275.1107261,0.00012479,2]
[333776579,1722481840705,-159.587532,0.00012986,2]
[333776581,1722481840714,-150.0,0.00013517,2]
[333776584,1722481840724,-506.0,0.00013517,2]
[333776586,1722481840734,-1410.0,0.00013517,2]
[333776588,1722481840747,-2562.43080772,0.00013597,2]
[333776590,1722481840756,-24369.17379322,0.00013688,2]
[333776591,1722481840889,-9243.76404578,0.00013688,2]
[333776592,1722481840899,-500.0,0.00013697,2]
[333776593,1722481840909,-256.88714523,0.00013698,2]
[333776594,1722481840921,-500.0,0.00013698,2]
[333776595,1722481840931,-571.26350656,0.00013698,2]
[333776596,1722481840941,-561.87,0.00013698,2]
[333776597,1722481840952,-500.0,0.00013698,2]
[333776598,1722481840965,-500.0,0.00013698,2]
[333776599,1722481840974,-816.15,0.00013698,2]
[333776600,1722481840984,-504.04210718,0.00013698,2]
[333776601,1722481840995,-500.0,0.00013698,2]
[333776605,1722481841004,-505.2784371,0.00013698,2]
[333776607,1722481841120,-507.3905992,0.00013698,2]
[333776609,1722481841129,-500.0,0.00013698,2]
[333776610,1722481841138,-551.83002644,0.00013698,2]
[333776613,1722481841148,-500.0,0.00013698,2]
[333776614,1722481841158,-504.55586087,0.00013698,2]
[333776616,1722481841168,-500.0,0.00013698,2]
[333776618,1722481841178,-500.14611743,0.00013698,2]
[333776620,1722481841188,-521.28259252,0.00013698,2]
[333776622,1722481841198,-503.37684485,0.00013698,2]
[333776623,1722481841207,-500.0,0.00013698,2]
[333776625,1722481841216,-500.0,0.00013698,2]
[333776627,1722481841225,-500.0,0.00013698,2]
[333776628,1722481841234,-504.63874163,0.00013698,2]
[333776629,1722481841245,-500.0,0.00013698,2]
[333776630,1722481841255,-506.33901798,0.00013698,2]
[333776631,1722481841264,-500.0,0.00013698,2]
[333776632,1722481841274,-500.0,0.00013698,2]
[333776633,1722481841284,-501.7600935,0.00013698,2]
[333776634,1722481841295,-500.0,0.00013698,2]
[333776635,1722481841304,-500.0,0.00013698,2]
[333776636,1722481841315,-500.0,0.00013698,2]
[333776637,1722481841324,-500.0,0.00013698,2]
[333776638,1722481841334,-500.0,0.00013698,2]
[333776639,1722481841343,-500.0,0.00013698,2]
[333776640,1722481841353,-710.52,0.00013698,2]
[333776641,1722481841362,-210.58092546,0.00013698,2]
[333776642,1722481841372,-500.0,0.00013698,2]
[333776643,1722481841381,-505.33346437,0.00013698,2]
[333776645,1722481841391,-500.0,0.00013698,2]
[333776647,1722481841401,-506.29276197,0.00013698,2]
[333776648,1722481841410,-503.3883103,0.00013698,2]
[333776650,1722481841420,-500.0,0.00013698,2]
[333776652,1722481841429,-500.0,0.00013698,2]
[333776653,1722481841438,-500.0,0.00013698,2]
[333776654,1722481841448,-507.29826954,0.00013698,2]
[333776655,1722481841458,-500.0,0.00013698,2]
[333776656,1722481841468,-500.0,0.00013698,2]
[333776657,1722481841477,-503.38878402,0.00013698,2]
[333776658,1722481841486,-500.0,0.00013698,2]
[333776659,1722481841495,-500.0,0.00013698,2]
[333776660,1722481841505,-500.0,0.00013698,2]
[333776661,1722481841514,-500.0,0.00013698,2]
[333776662,1722481841524,-976.03,0.00013698,2]
[333776663,1722481841534,-500.0,0.00013698,2]
[333776664,1722481841543,-500.0,0.00013698,2]
[333776665,1722481841552,-503.48874314,0.00013698,2]
[333776666,1722481841562,-500.0,0.00013698,2]
[333776667,1722481841571,-500.0,0.00013698,2]
[333776668,1722481841581,-500.0,0.00013698,2]
[333776669,1722481841591,-516.43955066,0.00013698,2]
[333776670,1722481841601,-576.25830808,0.00013698,2]
[333776671,1722481841611,-500.0,0.00013698,2]
[333776672,1722481841621,-500.0,0.00013698,2]
[333776673,1722481841631,-563.91,0.00013698,2]
[333776674,1722481841641,-500.0,0.00013698,2]
[333776675,1722481841650,-500.0,0.00013698,2]
[333776676,1722481841660,-616.98,0.00013698,2]
[333776677,1722481841670,-500.0,0.00013698,2]
[333776678,1722481841679,-500.0,0.00013698,2]
[333776679,1722481841689,-561.6,0.00013698,2]
[333776680,1722481841698,-500.0,0.00013698,2]
[333776681,1722481841708,-535.3,0.00013698,2]
[333776682,1722481841717,-500.24387165,0.00013698,2]
[333776683,1722481841726,-502.69746261,0.00013698,2]
[333776684,1722481841736,-500.0,0.00013698,2]
[333776685,1722481841747,-500.0,0.00013698,2]
[333776686,1722481841757,-938.12,0.00013698,2]
[333776687,1722481841765,-500.0,0.00013698,2]
[333776688,1722481841775,-506.16941099,0.00013698,2]
[333776689,1722481841784,-1468.28,0.00013698,2]
[333776690,1722481841794,-500.0,0.00013698,2]
[333776692,1722481841803,-500.0,0.00013698,2]
[333776694,1722481841813,-1081.71,0.00013698,2]
[333776696,1722481841823,-503.94988963,0.00013698,2]
[333776698,1722481841833,-500.0,0.00013698,2]
[333776699,1722481841842,-512.31230386,0.00013698,2]
[333776701,1722481841852,-500.0,0.00013698,2]
[333776702,1722481841863,-500.0,0.00013698,2]
[333776703,1722481841875,-500.0,0.00013698,2]
[333776704,1722481841889,-506.19236917,0.00013698,2]
[333776705,1722481841899,-500.0,0.00013698,2]
[333776706,1722481841908,-500.0,0.00013698,2]
[333776707,1722481841917,-504.61685954,0.00013698,2]
[333776708,1722481841927,-500.0,0.00013698,2]
[333776709,1722481841936,-500.0,0.00013698,2]
[333776710,1722481841946,-4664.39,0.00013698,2]
[333776711,1722481841956,-1044.16,0.00013698,2]
[333776712,1722481841967,-1528.36,0.00013698,2]
[333776713,1722481841977,-500.0,0.00013698,2]
[333776714,1722481841986,-505.87838137,0.00013698,2]
[333776715,1722481841998,-500.0,0.00013698,2]
[333776716,1722481842009,-568.07,0.00013698,2]
[333776717,1722481842019,-500.0,0.00013698,2]
[333776719,1722481842030,-500.0,0.00013698,2]
[333776721,1722481842042,-1139.83,0.00013698,2]
[333776723,1722481842053,-5862.13,0.00013698,2]
[333776725,1722481842063,-658.02,0.00013698,2]
[333776726,1722481842073,-500.0,0.00013698,2]
[333776727,1722481842082,-500.0,0.00013698,2]
[333776728,1722481842093,-500.0,0.00013698,2]
[333776729,1722481842103,-1215.37,0.00013698,2]
[333776730,1722481842112,-469.38675127,0.00013698,2]
[333776731,1722481842122,-707.18,0.00013698,2]
[333776732,1722481842132,-505.96664735,0.00013698,2]
[333776733,1722481842141,-500.0,0.00013698,2]
[333776734,1722481842151,-500.0,0.00013698,2]
[333776735,1722481842161,-500.0,0.00013698,2]
[333776736,1722481842172,-503.18615198,0.00013698,2]
[333776737,1722481842182,-848.42,0.00013698,2]
[333776738,1722481842191,-3871.48,0.00013698,2]
[333776739,1722481842202,-750.98,0.00013698,2]
[333776740,1722481842211,-500.0,0.00013698,2]
[333776741,1722481842221,-500.0,0.00013698,2]
[333776742,1722481842231,-2204.83,0.00013698,2]
[333776743,1722481842241,-500.0,0.00013698,2]
[333776744,1722481842251,-829.93,0.00013698,2]
[333776745,1722481842260,-500.0,0.00013698,2]
[333776746,1722481842270,-1677.14,0.00013698,2]
[333776747,1722481842279,-503.90173744,0.00013698,2]
[333776748,1722481842289,-500.0,0.00013698,2]
[333776749,1722481842299,-692.17,0.00013698,2]
[333776750,1722481842309,-500.0,0.00013698,2]
[333776751,1722481842319,-928.99,0.00013698,2]
[333776752,1722481842329,-504.61701673,0.00013698,2]
[333776753,1722481842339,-826.66,0.00013698,2]
[333776754,1722481842349,-979.04,0.00013698,2]
[333776755,1722481842358,-500.0,0.00013698,2]
[333776756,1722481842368,-500.0,0.00013698,2]
[333776757,1722481842378,-726.59,0.00013698,2]
[333776758,1722481842389,-982.43,0.00013698,2]
[333776759,1722481842400,-514.53,0.00013698,2]
[333776760,1722481842411,-500.0,0.00013698,2]
[333776761,1722481842422,-500.0,0.00013698,2]
[333776762,1722481842432,-598.51,0.00013698,2]
[333776763,1722481842442,-1022.93,0.00013698,2]
[333776764,1722481842451,-500.0,0.00013698,2]
[333776765,1722481842461,-569.52098236,0.00013698,2]
[333776766,1722481842472,-1201.11,0.00013698,2]
[333776767,1722481842482,-500.0,0.00013698,2]
[333776768,1722481842492,-502.1247299,0.00013698,2]
[333776769,1722481842501,-644.04,0.00013698,2]
[333776770,1722481842511,-500.0,0.00013698,2]
[333776771,1722481842521,-609.66,0.00013698,2]
[333776772,1722481842531,-483.10143405,0.00013698,2]
[333776773,1722481842541,-500.0,0.00013698,2]
[333776774,1722481842551,-502.84856858,0.00013698,2]
[333776775,1722481842561,-500.0,0.00013698,2]
[333776776,1722481842571,-506.21298736,0.00013698,2]
[333776777,1722481842582,-869.81,0.00013698,2]
[333776778,1722481842591,-1007.88,0.00013698,2]
[333776779,1722481842601,-2007.16,0.00013698,2]
[333776780,1722481842611,-500.0,0.00013698,2]
[333776781,1722481842621,-505.93990243,0.00013698,2]
[333776782,1722481842631,-500.0,0.00013698,2]
[333776783,1722481842640,-1607.99,0.00013698,2]
[333776784,1722481842650,-500.0,0.00013698,2]
[333776785,1722481842660,-500.0,0.00013698,2]
[333776786,1722481842669,-582.3,0.00013698,2]
[333776787,1722481842679,-840.15,0.00013698,2]
[333776788,1722481842688,-500.0,0.00013698,2]
[333776789,1722481842698,-1531.93,0.00013698,2]
[333776790,1722481842707,-2223.44,0.00013698,2]
[333776791,1722481842718,-517.32,0.00013698,2]
[333776792,1722481842727,-1057.96,0.00013698,2]
[333776793,1722481842737,-1181.77,0.00013698,2]
[333776794,1722481842748,-704.99,0.00013698,2]
[333776795,1722481842758,-1272.81,0.00013698,2]
[333776796,1722481842768,-1272.81,0.00013698,2]
[333776797,1722481842778,-1272.81,0.00013698,2]
[333776798,1722481842787,-500.0,0.00013698,2]
[333776799,1722481842797,-500.0,0.00013698,2]
[333776800,1722481842806,-825.41,0.00013698,2]
[333776801,1722481842815,-504.17786989,0.00013698,2]
[333776802,1722481842825,-5877.26,0.00013698,2]
[333776803,1722481842835,-602.08,0.00013698,2]
[333776804,1722481842845,-500.0,0.00013698,2]
[333776805,1722481842855,-500.0,0.00013698,2]
[333776806,1722481842866,-480.795551,0.00013699,2]
[333776807,1722481842876,-240.39431555,0.00013699,2]
[333776808,1722481842889,-150.112233,0.000137,2]
[333776810,1722481842898,-420.0,0.00013726,2]
[333776811,1722481842908,-33612.937839,0.00013733,2]
[333776814,1722481842918,-150.93610789,0.00013788,2]
[333776816,1722481842929,-5309.02943464,0.00013789,2]
[333776817,1722481842938,-150.119,0.00013915,2]
[333776819,1722481842947,-1272.81,0.00013931,2]
[333776821,1722481842958,-150.05,0.00013942,2]
[333776822,1722481842969,-500.0,0.00013949,2]
[333776823,1722481842979,-67225.875678,0.00013962,2]
[333776824,1722481842988,-500.0,0.00013971,2]
[333776825,1722481842999,-322.96316652,0.00013971,2]
[333776826,1722481843008,-500.0,0.00013971,2]
[333776827,1722481843018,-500.0,0.00013971,2]
[333776828,1722481843027,-261.09416685,0.00013971,2]
[333776829,1722481843038,-500.0,0.00013971,2]
[333776830,1722481843048,-500.0,0.00013971,2]
[333776831,1722481843058,-485.76133368,0.00013971,2]
[333776832,1722481843067,-500.0,0.00013971,2]
[333776833,1722481843077,-500.0,0.00013971,2]
[333776834,1722481843087,-309.39370234,0.00013971,2]
[333776835,1722481843096,-500.0,0.00013971,2]
[333776836,1722481843106,-500.0,0.00013971,2]
[333776837,1722481843116,-345.1138143,0.00013971,2]
[333776838,1722481843126,-167.31786718,0.00013971,2]
[333776839,1722481843135,-500.0,0.00013971,2]
[333776840,1722481843146,-500.0,0.00013971,2]
[333776841,1722481843155,-623.47332157,0.00013971,2]
[333776842,1722481843165,-500.0,0.00013971,2]
[333776843,1722481843175,-500.0,0.00013971,2]
[333776844,1722481843184,-375.81850404,0.00013971,2]
[333776845,1722481843194,-500.0,0.00013971,2]
[333776846,1722481843203,-1272.81,0.00013971,2]
[333776847,1722481843215,-1272.81,0.00013971,2]
[333776848,1722481843225,-1272.81,0.00013971,2]
[333776849,1722481843235,-500.0,0.00013972,2]
[333776850,1722481843247,-561.87,0.00013972,2]
[333776851,1722481843259,-500.0,0.00013972,2]
[333776852,1722481843268,-816.15,0.00013972,2]
[333776853,1722481843278,-500.0,0.00013972,2]
[333776854,1722481843289,-500.0,0.00013972,2]
[333776855,1722481843300,-500.0,0.00013972,2]
[333776856,1722481843409,-500.0,0.00013972,2]
[333776857,1722481843419,-500.0,0.00013972,2]
[333776858,1722481843430,-500.0,0.00013972,2]
[333776860,1722481843439,-500.0,0.00013972,2]
[333776862,1722481843449,-710.52,0.00013972,2]
[333776864,1722481843458,-500.0,0.00013972,2]
[333776865,1722481843468,-500.0,0.00013972,2]
[333776866,1722481843478,-976.03,0.00013972,2]
[333776867,1722481843487,-500.0,0.00013972,2]
[333776868,1722481843498,-500.0,0.00013972,2]
[333776869,1722481843509,-500.0,0.00013972,2]
[333776870,1722481843519,-500.0,0.00013972,2]
[333776871,1722481843529,-563.91,0.00013972,2]
[333776872,1722481843538,-500.0,0.00013972,2]
[333776873,1722481843548,-500.0,0.00013972,2]
[333776874,1722481843558,-616.98,0.00013972,2]
[333776875,1722481843567,-500.0,0.00013972,2]
[333776876,1722481843576,-500.0,0.00013972,2]
[333776877,1722481843586,-561.6,0.00013972,2]
[333776878,1722481843595,-500.0,0.00013972,2]
[333776879,1722481843605,-535.3,0.00013972,2]
[333776880,1722481843614,-938.12,0.00013972,2]
[333776881,1722481843626,-500.0,0.00013972,2]
[333776882,1722481843636,-1468.28,0.00013972,2]
[333776883,1722481843647,-500.0,0.00013972,2]
[333776884,1722481843659,-500.0,0.00013972,2]
[333776885,1722481843669,-1081.71,0.00013972,2]
[333776886,1722481843679,-151.0,0.00013972,2]
[333776887,1722481843689,-500.0,0.00013972,2]
[333776888,1722481843700,-500.0,0.00013972,2]
[333776889,1722481843711,-500.0,0.00013972,2]
[333776890,1722481843722,-151.0,0.00013972,2]
[333776891,1722481843731,-151.0,0.00013972,2]
[333776892,1722481843743,-151.0,0.00013972,2]
[333776893,1722481843754,-4664.39,0.00013972,2]
[333776894,1722481843764,-1044.16,0.00013972,2]
[333776895,1722481843776,-1528.36,0.00013972,2]
[333776896,1722481843785,-500.0,0.00013972,2]
[333776897,1722481843794,-500.0,0.00013972,2]
[333776898,1722481843803,-568.07,0.00013972,2]
[333776899,1722481843813,-1139.83,0.00013972,2]
[333776900,1722481843822,-5862.13,0.00013972,2]
[333776901,1722481843831,-658.02,0.00013972,2]
[333776902,1722481843842,-361.1431352,0.00013972,2]
[333776903,1722481843852,-500.0,0.00013972,2]
[333776904,1722481843864,-1215.37,0.00013972,2]
[333776905,1722481843874,-707.18,0.00013972,2]
[333776906,1722481843889,-500.0,0.00013972,2]
[333776907,1722481843900,-500.0,0.00013972,2]
[333776908,1722481843910,-848.42,0.00013972,2]
[333776909,1722481843923,-3871.48,0.00013972,2]
[333776910,1722481843933,-341.046348,0.00013972,2]
[333776911,1722481843944,-750.98,0.00013972,2]
[333776912,1722481843957,-500.0,0.00013972,2]
[333776913,1722481843967,-500.0,0.00013972,2]
[333776914,1722481843978,-2204.83,0.00013972,2]
[333776915,1722481843991,-341.046348,0.00013972,2]
[333776916,1722481844003,-500.0,0.00013972,2]
[333776917,1722481844013,-829.93,0.00013972,2]